fUST/lending_fUST_20251026
["ID","MTS","AMOUNT","RATE_DAILY","PERIOD"]
[392445610,1761483060708,-500.0,0.00027945,2]
[392445611,1761483060717,-500.0,0.00027945,2]
[392445612,1761483060726,-500.0,0.00027945,2]
[392445613,1761483060735,-1066.12,0.00027945,2]
[392445614,1761483060745,-717.23,0.00027945,2]
[392445615,1761483060754,-775.42,0.00027945,2]
[392445616,1761483060763,-500.0,0.00027945,2]
[392445617,1761483060772,-520.83113177,0.00027945,2]
[392445618,1761483060780,-500.0,0.00027945,2]
[392445619,1761483060789,-572.89,0.00027945,2]
[392445620,1761483060798,-500.0,0.00027945,2]
[392445621,1761483060807,-616.45,0.00027945,2]
[392445622,1761483060815,-500.0,0.00027945,2]
[392445623,1761483060828,-500.0,0.00027945,2]
[392445624,1761483060838,-500.0,0.00027945,2]
[392445625,1761483060850,-1098.13,0.00027945,2]
[392445626,1761483060859,-1501.2,0.00027945,2]
[392445627,1761483060869,-500.0,0.00027945,2]
[392445628,1761483060878,-500.0,0.00027945,2]
[392445629,1761483060887,-500.0,0.00027945,2]
[392445630,1761483060979,-500.0,0.00027945,2]
[392445631,1761483060989,-500.0,0.00027945,2]
[392445632,1761483061000,-1004.18,0.00027945,2]
[392445633,1761483061010,-1010.82,0.00027945,2]
[392445634,1761483061020,-1538.37,0.00027945,2]
[392445635,1761483061029,-500.0,0.00027945,2]
[392445636,1761483061039,-747.75,0.00027945,2]
[392445637,1761483061048,-500.0,0.00027945,2]
[392445638,1761483061057,-1047.19,0.00027945,2]
[392445639,1761483061066,-1709.16,0.00027945,2]
[392445640,1761483061075,-500.0,0.00027945,2]
[392445641,1761483061084,-2054.32,0.00027945,2]
[392445642,1761483061097,-799.25,0.00027945,2]
[392445643,1761483061108,-500.0,0.00027945,2]
[392445644,1761483061118,-809.51,0.00027945,2]
[392445645,1761483061128,-500.0,0.00027945,2]
[392445646,1761483061138,-540.86,0.00027945,2]
[392445647,1761483061147,-575.17,0.00027945,2]
[392445648,1761483061157,-1038.09,0.00027945,2]
[392445649,1761483061167,-500.0,0.00027945,2]
[392445650,1761483061176,-500.0,0.00027945,2]
[392445651,1761483061186,-500.0,0.00027945,2]
[392445652,1761483061196,-500.0,0.00027945,2]
[392445653,1761483061207,-928.31,0.00027945,2]
[392445654,1761483061216,-1290.91,0.00027945,2]
[392445655,1761483061226,-500.0,0.00027945,2]
[392445656,1761483061236,-500.0,0.00027945,2]
[392445657,1761483061246,-500.0,0.00027945,2]
[392445658,1761483061256,-775.46,0.00027945,2]
[392445659,1761483061266,-500.0,0.00027945,2]
[392445660,1761483061276,-1732.98,0.00027945,2]
[392445661,1761483061286,-502.04764891,0.00027945,2]
[392445662,1761483061296,-1010.2,0.00027945,2]
[392445663,1761483061306,-500.0,0.00027945,2]
[392445664,1761483061316,-500.0,0.00027945,2]
[392445665,1761483061327,-602.62,0.00027945,2]
[392445666,1761483061337,-500.0,0.00027945,2]
[392445667,1761483061350,-552.95,0.00027945,2]
[392445668,1761483061359,-523.61,0.00027945,2]
[392445669,1761483061369,-605.47,0.00027945,2]
[392445670,1761483061379,-912.43,0.00027945,2]
[392445671,1761483061388,-824.14,0.00027945,2]
[392445672,1761483061398,-500.0,0.00027945,2]
[392445673,1761483061407,-754.82,0.00027945,2]
[392445674,1761483061416,-721.92,0.00027945,2]
[392445675,1761483061426,-500.0,0.00027945,2]
[392445676,1761483061435,-1168.26,0.00027945,2]
[392445677,1761483061444,-500.0,0.00027945,2]
[392445678,1761483061452,-536.64,0.00027945,2]
[392445679,1761483061462,-938.7,0.00027945,2]
[392445680,1761483061472,-1818.91,0.00027945,2]
[392445681,1761483061480,-500.0,0.00027945,2]
[392445682,1761483061490,-500.0,0.00027945,2]
[392445683,1761483061499,-500.0,0.00027945,2]
[392445684,1761483061508,-721.16,0.00027945,2]
[392445685,1761483061517,-500.0,0.00027945,2]
[392445686,1761483061527,-500.0,0.00027945,2]
[392445687,1761483061536,-644.18,0.00027945,2]
[392445688,1761483061545,-1466.62,0.00027945,2]
[392445689,1761483061555,-685.25,0.00027945,2]
[392445690,1761483061564,-500.0,0.00027945,2]
[392445691,1761483061573,-1247.86,0.00027945,2]
[392445692,1761483061582,-1035.78,0.00027945,2]
[392445693,1761483061594,-913.81,0.00027945,2]
[392445694,1761483061603,-500.0,0.00027945,2]
[392445695,1761483061613,-500.0,0.00027945,2]
[392445696,1761483061622,-500.0,0.00027945,2]
[392445697,1761483061631,-500.0,0.00027945,2]
[392445698,1761483061641,-2314.16,0.00027945,2]
[392445699,1761483061650,-559.76,0.00027945,2]
[392445700,1761483061659,-500.0,0.00027945,2]
[392445701,1761483061668,-500.0,0.00027945,2]
[392445702,1761483061677,-500.0,0.00027945,2]
[392445703,1761483061686,-1095.8,0.00027945,2]
[392445704,1761483061695,-1217.84,0.00027945,2]
[392445705,1761483061704,-628.78,0.00027945,2]
[392445706,1761483061714,-1178.12,0.00027945,2]
[392445707,1761483061723,-500.0,0.00027945,2]
[392445708,1761483061732,-500.0,0.00027945,2]
[392445709,1761483061741,-500.0,0.00027945,2]
[392445710,1761483061751,-2150.15,0.00027945,2]
[392445711,1761483061760,-1693.8,0.00027945,2]
[392445712,1761483061769,-837.08,0.00027945,2]
[392445713,1761483061778,-500.0,0.00027945,2]
[392445714,1761483061787,-722.92854465,0.00027945,2]
[392445715,1761483085663,197.5442189,0.00018,2]
[392445716,1761483099302,953.01263572,0.00018,2]
[392445717,1761483105921,220.924098,0.0001912,9]
[392445718,1761483108146,180.36974047,0.00018,2]
[392445719,1761483115028,212.39836721,0.00018,2]
[392445721,1761483203519,2958.42,0.00030136,120]
[392445722,1761483281699,8035.0,0.00018,2]
[392445723,1761483414415,197.54421889,0.00018,2]
[392445724,1761483420435,2835.16,0.00030136,120]
[392445725,1761483430784,762.41010857,0.00018,2]
[392445726,1761483434105,180.36974047,0.00018,2]
[392445728,1761483560682,706.678526,0.00013699,2]
[392445737,1761483659894,2717.02,0.00030136,120]
[392445738,1761483738210,197.5442189,0.00018,2]
[392445739,1761483754266,180.36974047,0.00018,2]
[392445740,1761483755600,609.92808686,0.00018,2]
[392445742,1761483907880,2603.81,0.00030136,120]
[392445743,1761483966362,7980.0,0.00030137,120]
[392445744,1761484078114,180.36974047,0.00018,2]
[392445745,1761484078627,197.54421889,0.00018,2]
[392445746,1761484084513,487.94246949,0.00018,2]
[392445747,1761484133597,5000.11,0.00018,2]
[392445755,1761484151433,2495.32,0.00030136,120]
[392445779,1761484232531,-200.0,0.00018198,2]
[392445780,1761484232541,-403.49456409,0.00018199,2]
[392445781,1761484232550,-483.6823225,0.000182,2]
[392445788,1761484232643,-4.26014699,0.000182,2]
[392445790,1761484232652,-487.94246949,0.000184,2]
[392445792,1761484232661,-67.96371706,0.000185,2]
[392445794,1761484232672,-351.49724853,0.000185,2]
[392445839,1761484238183,-68.4815039,0.000185,2]
[392445840,1761484238192,-237.5359271,0.000187,2]
[392445951,1761484245361,-250.40654239,0.000187,2]
[392445952,1761484245371,-600.0,0.0002,2]
[392445953,1761484245381,-706.678526,0.00020187,2]
[392445954,1761484245390,-256.271953,0.00020452,2]
[392445955,1761484245399,-302.694936,0.00021,2]
[392445956,1761484245409,-602.0,0.00021,3]
[392445957,1761484245418,-300.0,0.00021443,2]
[392445958,1761484245428,-1200.0,0.00021443,2]
[392445959,1761484245441,-300.0,0.00021443,2]
[392445961,1761484245450,-300.0,0.00021443,2]
[392445963,1761484245459,-8539.9539441,0.00021444,2]
[392445964,1761484245468,-180.05221514,0.00021732,2]
[392445965,1761484245477,-553.94619722,0.00022192,7]
[392445966,1761484245487,-195.16799221,0.00023,2]
[392445967,1761484245496,-167.0,0.00023,7]
[392445968,1761484245505,-500.0,0.00023324,2]
[392445969,1761484245514,-170.1701174,0.00023331,2]
[392445970,1761484245523,-637.10488865,0.00023331,2]
[392445971,1761484245532,-500.0,0.00023331,2]
[392445972,1761484245541,-500.0,0.00023331,2]
[392445973,1761484245550,-202.04750829,0.00023331,2]
[392445974,1761484245559,-500.0,0.00023331,2]
[392445975,1761484245568,-500.0,0.00023331,2]
[392445976,1761484245579,-482.97268996,0.00023331,2]
[392445977,1761484245589,-650.1648231,0.00023331,2]
[392445978,1761484245599,-984.0,0.00023332,2]
[392445979,1761484245607,-632.0,0.00023332,2]
[392445980,1761484245616,-2166.0,0.00023332,2]
[392445981,1761484245626,-500.0,0.00023373,2]
[392445982,1761484245635,-500.0,0.0002347,2]
[392445983,1761484245643,-256.271953,0.00023524,2]
[392445984,1761484245652,-154.46992,0.00023524,2]
[392445985,1761484245662,-411.0,0.00023558,2]
[392445986,1761484245671,-500.0,0.0002362,2]
[392445987,1761484245681,-804.17417921,0.00023698,2]
[392445988,1761484245690,-500.0,0.00023729,2]
[392445989,1761484245698,-500.0,0.00024087,2]
[392445990,1761484245707,-500.0,0.00024119,2]
[392445991,1761484245716,-168.0,0.00024164,7]
[392445992,1761484245725,-779.93652805,0.00024505,2]
[392445993,1761484245735,-632.04695801,0.0002452,2]
[392445994,1761484245744,-151.0,0.00024628,2]
[392445996,1761484245754,-3020.0,0.000247,2]
[392445997,1761484245763,-151.0,0.00024776,2]
[392445998,1761484245772,-151.0,0.00024776,2]
[392445999,1761484245781,-6423.14858489,0.00024776,2]
[392446000,1761484245790,-155.91597635,0.00024776,2]
[392446001,1761484245800,-500.0,0.00024776,2]
[392446003,1761484245809,-250.0,0.00024776,2]
[392446005,1761484245819,-250.0,0.00024776,2]
[392446007,1761484245828,-250.0,0.00024776,2]
[392446009,1761484245838,-250.0,0.00024776,2]
[392446011,1761484245847,-78.58512733,0.00024776,2]
[392446025,1761484255215,170.14964607,0.00018,2]
[392446026,1761484255992,191.26516765,0.00018,2]
[392446027,1761484258508,173.95031755,0.00018,2]
[392446028,1761484259483,180.5186732,0.000175,2]
[392446029,1761484259510,187.10934597,0.00018,2]
[392446030,1761484260504,180.5186732,0.000176,2]
[392446031,1761484261619,180.5186732,0.000178,2]
[392446032,1761484330490,176.91039889,0.00018,2]
[392446033,1761484331417,196.0,0.00016,2]
[392446034,1761484331716,196.0,0.00016033,2]
[392446035,1761484332017,196.0,0.00016066,2]
[392446036,1761484332313,196.0,0.00016098,2]
[392446037,1761484332622,196.0,0.00016131,2]
[392446038,1761484332909,196.0,0.00016164,2]
[392446039,1761484333210,196.0,0.00016197,2]
[392446040,1761484333517,196.0,0.0001623,2]
[392446041,1761484333976,196.0,0.00016263,2]
[392446042,1761484334106,196.0,0.00016295,2]
[392446043,1761484334407,196.0,0.00016328,2]
[392446044,1761484334698,196.0,0.00016361,2]
[392446045,1761484335004,196.0,0.00016394,2]
[392446046,1761484335304,196.0,0.00016427,2]
[392446047,1761484335613,196.0,0.00016459,2]
[392446048,1761484335944,196.0,0.00016492,2]
[392446049,1761484336227,196.0,0.00016525,2]
[392446050,1761484336524,196.0,0.00016558,2]
[392446051,1761484336847,196.0,0.00016591,2]
[392446052,1761484337140,196.0,0.00016623,2]
[392446053,1761484337435,196.0,0.00016656,2]
[392446054,1761484337718,196.0,0.00016689,2]
[392446055,1761484338013,196.0,0.00016722,2]
[392446056,1761484338329,196.0,0.00016755,2]
[392446057,1761484338616,196.0,0.00016788,2]
[392446058,1761484338913,196.0,0.0001682,2]
[392446059,1761484339210,196.0,0.00016853,2]
[392446060,1761484339504,196.0,0.00016886,2]
[392446061,1761484339797,196.0,0.00016919,2]
[392446062,1761484340085,196.0,0.00016952,2]
[392446063,1761484340385,196.0,0.00016984,2]
[392446064,1761484340671,196.0,0.00017017,2]
[392446065,1761484340965,196.0,0.0001705,2]
[392446066,1761484341264,196.0,0.00017083,2]
[392446067,1761484341570,196.0,0.00017116,2]
[392446068,1761484341837,196.0,0.00017148,2]
[392446069,1761484342122,196.0,0.00017181,2]
[392446070,1761484342429,196.0,0.00017214,2]
[392446071,1761484342743,196.0,0.00017247,2]
[392446072,1761484343039,196.0,0.0001728,2]
[392446073,1761484343362,196.0,0.00017313,2]
[392446074,1761484343649,196.0,0.00017345,2]
[392446075,1761484344154,196.0,0.00017378,2]
[392446076,1761484344290,196.0,0.00017411,2]
[392446077,1761484344604,196.0,0.00017444,2]
[392446078,1761484344885,196.0,0.00017477,2]
[392446079,1761484345237,196.0,0.00017509,2]
[392446080,1761484345500,196.0,0.00017542,2]
[392446081,1761484345784,196.0,0.00017575,2]
[392446082,1761484346075,196.0,0.00017608,2]
[392446083,1761484346361,196.0,0.00017641,2]
[392446084,1761484346647,196.0,0.00017673,2]
[392446085,1761484346973,196.0,0.00017706,2]
[392446086,1761484347308,196.0,0.00017739,2]
[392446087,1761484347628,196.0,0.00017772,2]
[392446088,1761484347946,196.0,0.00017805,2]
[392446089,1761484348289,196.0,0.00017838,2]
[392446090,1761484348608,196.0,0.0001787,2]
[392446091,1761484348887,196.0,0.00017903,2]
[392446092,1761484349261,196.0,0.00017936,2]
[392446093,1761484349566,196.0,0.00017969,2]
[392446094,1761484375774,191.8197303,0.00018,2]
[392446097,1761484386405,2391.35,0.00030136,120]
[392446099,1761484396244,190.23285363,0.00018,2]
[392446100,1761484398390,238.27056755,0.00018,2]
[392446101,1761484403163,173.74614517,0.00018,2]
[392446102,1761484451310,196.0,0.00016,2]
[392446103,1761484451595,196.0,0.0001705,2]
[392446104,1761484456099,2035.14234491,0.00018,2]
[392446106,1761484570643,196.0,0.00016,2]
[392446107,1761484570926,196.0,0.000167,2]
[392446108,1761484571224,196.0,0.000174,2]
[392446109,1761484636544,2291.71,0.00030136,120]
[392446110,1761484673825,176.91039889,0.00018,2]
[392446111,1761484691695,276.62640902,0.00016,2]
[392446112,1761484779087,190.23285363,0.00018,2]
[392446113,1761484779170,173.74614517,0.00018,2]
[392446114,1761484781399,191.8197303,0.00018,2]
[392446115,1761484810654,241.02892217,0.00016,2]
[392446116,1761484884760,2196.22,0.00030136,120]
[392446117,1761484948970,206.09,0.00030137,120]
[392446118,1761485048323,5000.0,0.0001912,9]
[392446123,1761485111991,2104.71,0.00030136,120]
[392446125,1761485134722,163.0,0.00018,2]
[392446126,1761485151577,176.91039889,0.00018,2]
[392446134,1761485189607,190.23285363,0.00018,2]
[392446138,1761485310765,10000.01,0.00017,2]
[392446148,1761485351206,2017.02,0.00030136,120]
[392446248,1761485436869,-174.35744522,0.00018099,2]
[392446249,1761485436878,-653.86969548,0.00018099,2]
[392446250,1761485436887,-75.71276026,0.00018099,2]
[392446251,1761485436928,-124.28723974,0.00018099,2]
[392446252,1761485436938,-160.0,0.00018197,2]
[392446253,1761485436949,-160.0,0.00018197,2]
[392446254,1761485436963,-160.0,0.00018197,2]
[392446255,1761485436972,-176.91039889,0.000182,2]
[392446256,1761485436982,-190.23285363,0.000182,2]
[392446257,1761485436994,-190.23285363,0.000184,2]
[392446258,1761485437004,-288.9,0.00018595,2]
[392446259,1761485437014,-188.68465872,0.00018739,2]
[392446260,1761485437024,-395.64467391,0.00020026,2]
[392446261,1761485437036,-7.84989018,0.00020026,2]
[392446262,1761485437045,-578.00010992,0.0002011,2]
[392446263,1761485437055,-621.99989008,0.0002011,2]
[392446264,1761485437064,-288.9,0.00020114,2]
[392446265,1761485437073,-300.0,0.00020208,2]
[392446267,1761485437082,-465.78288214,0.00020209,2]
[392446269,1761485437092,-6154.70698679,0.00020209,2]
[392446270,1761485437102,-1200.0,0.00020269,2]
[392446272,1761485437111,-168.3540383,0.00020385,2]
[392446274,1761485437119,-294.712747,0.00020626,2]
[392446276,1761485437128,-154.46992,0.00020626,2]
[392446277,1761485437137,-288.9,0.00021632,2]
[392446278,1761485437146,-180.05221514,0.00021732,2]
[392446279,1761485437155,-170.0,0.00021894,2]
[392446280,1761485437164,-509.0,0.00021895,2]
[392446281,1761485437173,-420.0,0.00022,2]
[392446282,1761485437182,-1180.69835913,0.0002217,2]
[392446283,1761485437193,-499.30164087,0.0002217,2]
[392446284,1761485437202,-500.0,0.00022343,2]
[392446285,1761485437211,-465.78288214,0.00022638,3]
[392446286,1761485437220,-500.0,0.00022997,2]
[392446287,1761485437230,-500.0,0.00022997,2]
[392446288,1761485437239,-324.88968892,0.00022997,2]
[392446289,1761485437248,-500.0,0.00022997,2]
[392446290,1761485437257,-183.35164701,0.00022997,2]
[392446291,1761485437266,-500.0,0.00022997,2]
[392446292,1761485437275,-500.0,0.00022997,2]
[392446293,1761485437285,-500.0,0.00022997,2]
[392446294,1761485437294,-479.15675866,0.00022997,2]
[392446295,1761485437309,-20.84324134,0.00022997,2]
[392446296,1761485437318,-500.0,0.00022997,2]
[392446297,1761485437327,-630.61095329,0.00022997,2]
[392446298,1761485437336,-500.0,0.00022997,2]
[392446299,1761485437346,-500.0,0.00022997,2]
[392446300,1761485437355,-1412.61437259,0.00023,2]
[392446301,1761485437364,-162.0564623,0.00023,3]
[392446302,1761485437373,-682.444462,0.00023131,2]
[392446303,1761485437382,-288.9,0.00023151,2]
[392446304,1761485437391,-500.0,0.00023156,2]
[392446305,1761485437400,-235.55297769,0.0002323,2]
[392446306,1761485437409,-500.0,0.0002323,2]
[392446307,1761485437418,-500.0,0.0002323,2]
[392446308,1761485437427,-500.0,0.0002323,2]
[392446309,1761485437436,-40108.7536263,0.00023231,2]
[392446310,1761485437446,-3279.3033143,0.00023231,2]
[392446311,1761485437455,-20511.33205383,0.00023231,2]
[392446312,1761485437467,-356.90219037,0.00023231,2]
[392446313,1761485437476,-214.3043268,0.00023231,2]
[392446314,1761485437495,-500.0,0.00023415,2]
[392446315,1761485437506,-1308.11869983,0.000235,2]
[392446318,1761485439885,-104.49567276,0.000235,2]
[392446319,1761485439895,-363.77097892,0.00023504,2]
[392446320,1761485439905,-500.0,0.00023569,2]
[392446321,1761485439919,-167.13334832,0.00023604,2]
[392446322,1761485439931,-127.57939868,0.00023604,2]
[392446323,1761485439941,-154.46992,0.00023604,2]
[392446325,1761485439951,-1018.37005407,0.000237,2]
[392446382,1761485440737,-394.24431852,0.000237,2]
[392446383,1761485440747,-27.97028104,0.000239,2]
[392446384,1761485440758,-1384.64409155,0.000239,2]
[392446385,1761485440767,-250.0,0.00023915,2]
[392446386,1761485440777,-2303.90233904,0.00023937,10]
[392446387,1761485440788,-590.05844239,0.00023937,10]
[392446388,1761485440805,-47.32921857,0.00023937,10]
[392446389,1761485440814,-520.08697631,0.00023947,10]
[392446399,1761485443713,-587.0,0.0002395,2]
[392446400,1761485443723,-504.27817058,0.00023957,2]
[392446401,1761485443732,-156.61981437,0.00023985,2]
[392446402,1761485443743,-343.38018563,0.00023985,2]
[392446403,1761485443753,-5622.61346763,0.0002399,2]
[392446404,1761485443766,-4870.80153802,0.0002399,2]
[392446405,1761485443883,-18578.79232766,0.0002399,2]
[392446406,1761485443933,-408.0,0.0002399,2]
[392446412,1761485446690,-5501.79470898,0.0002399,2]
[392446413,1761485446807,-22975.57287205,0.0002399,2]
[392446414,1761485446818,-2630.96192476,0.0002399,2]
[392446415,1761485481814,161.22744083,0.00018,2]
[392446416,1761485496307,165.658393,0.00013699,2]
[392446417,1761485579915,1999.0,0.00030136,120]
[392446418,1761485582030,176.91039888,0.00018,2]
[392446421,1761485835388,1999.0,0.00030136,120]
[392446422,1761486068657,1999.0,0.00030136,120]
[392446424,1761486318175,1999.0,0.00030136,120]
[392446432,1761486406114,3062.17141017,0.00018,2]
[392446433,1761486432905,2659.81394479,0.0001912,9]
[392446447,1761486458875,676.028627,0.00013699,2]
[392446449,1761486553731,1999.0,0.00030136,120]
[392446466,1761486594047,161.22744083,0.00018,2]
[392446512,1761486636308,-161.22744083,0.000182,2]
[392446514,1761486636317,-368.90535168,0.0001839,2]
[392446516,1761486636329,-638.84857,0.0001839,2]
[392446519,1761486636341,-2638.28558584,0.0001839,2]
[392446521,1761486636352,-1353.96049248,0.0001839,2]
[392446523,1761486636364,-160.0,0.0001839,2]
[392446524,1761486636373,-300.0,0.00018575,2]
[392446526,1761486636382,-300.0,0.00018575,2]
[392446528,1761486636391,-300.0,0.00018575,2]
[392446530,1761486636401,-300.0,0.00018575,2]
[392446532,1761486636411,-1200.0,0.00018575,2]
[392446534,1761486636424,-300.0,0.00018575,2]
[392446537,1761486636433,-5000.0,0.00018576,2]
[392446540,1761486636442,-1167.53950852,0.00018576,2]
[392446544,1761486636453,-264.749999,0.00018576,2]
[392446547,1761486636464,-487.43371295,0.00018576,2]
[392446550,1761486636475,-1279.31377126,0.00018576,2]
[392446553,1761486636485,-192.6,0.00018764,2]
[392446556,1761486636494,-87.21177723,0.00020187,2]
[392446640,1761486637549,-588.81684977,0.00020187,2]
[392446641,1761486637558,-420.0,0.00020256,2]
[392446642,1761486637568,-192.6,0.00020267,2]
[392446643,1761486637578,-1680.0,0.00020354,2]
[392446644,1761486637587,-212.193177,0.00021095,2]
[392446645,1761486637596,-280.51402557,0.00021363,2]
[392446646,1761486637606,-947.67196945,0.00021497,2]
[392446647,1761486637615,-157.65,0.00021497,2]
[392446648,1761486637624,-333.7086762,0.00021732,2]
[392446650,1761486637634,-192.6,0.00021771,2]
[392446652,1761486637644,-282.547248,0.00021972,2]
[392446653,1761486637652,-500.0,0.00022087,2]
[392446654,1761486637662,-238.01668341,0.00022087,2]
[392446655,1761486637674,-261.98331659,0.00022087,2]
[392446656,1761486637682,-500.0,0.00022087,2]
[392446658,1761486637691,-313.8766321,0.00022087,2]
[392446659,1761486637700,-624.93294247,0.00022087,2]
[392446660,1761486637710,-500.0,0.00022087,2]
[392446661,1761486637720,-566.43643582,0.00022087,2]
[392446662,1761486637730,-500.0,0.00022087,2]
[392446663,1761486637739,-376.03884945,0.00022087,2]
[392446664,1761486637748,-500.0,0.00022087,2]
[392446665,1761486637757,-500.0,0.00022087,2]
[392446666,1761486637766,-367.01785571,0.00022087,2]
[392446667,1761486637776,-587.0,0.00022088,2]
[392446668,1761486637785,-279.69326036,0.0002213,2]
[392446669,1761486637794,-2110.27580743,0.00022214,2]
[392446670,1761486637805,-1474.12497697,0.00022214,2]
[392446671,1761486637814,-2351.0,0.00022304,2]
[392446672,1761486637823,-210.2,0.00022432,2]
[392446673,1761486637832,-73.45473364,0.00023,2]
[392446674,1761486637843,-209.06814088,0.00023,2]
[392446675,1761486637853,-500.0,0.00023185,2]
[392446676,1761486637862,-282.52287452,0.000232,2]
[392446677,1761486637871,-1200.0,0.00023258,2]
[392446678,1761486637881,-192.6,0.00023274,2]
[392446679,1761486637890,-500.0,0.00023274,2]
[392446680,1761486637899,-262.75,0.00023367,2]
[392446681,1761486637909,-597.13890425,0.0002341,2]
[392446682,1761486637918,-500.0,0.00023477,2]
[392446683,1761486637927,-2.92651803,0.000235,2]
[392446684,1761486637938,-279.59635649,0.000235,2]
[392446685,1761486637947,-500.0,0.0002351,2]
[392446686,1761486637956,-184.25694865,0.00023583,2]
[392446687,1761486637967,-1003.90200101,0.00023583,2]
[392446756,1761486643061,-7411.27676674,0.00023583,2]
[392446757,1761486643071,-163.2668984,0.00023583,2]
[392446758,1761486643080,-500.0,0.00023684,2]
[392446759,1761486643090,-282.52287452,0.000237,2]
[392446760,1761486643099,-500.0,0.00023708,2]
[392446761,1761486643108,-212.193177,0.00023726,2]
[392446762,1761486643117,-250.37544408,0.00023791,2]
[392446763,1761486643126,-367.87355152,0.00023791,2]
[392446764,1761486643135,-500.0,0.00023792,2]
[392446765,1761486643145,-2094.90846434,0.00023815,7]
[392446766,1761486643154,-359.03675143,0.0002386,2]
[392446767,1761486643163,-500.0,0.00023867,2]
[392446768,1761486643173,-500.0,0.000239,2]
[392446769,1761486643182,-282.52287452,0.000239,2]
[392446770,1761486643192,-165.658393,0.00023973,2]
[392446771,1761486643201,-270.18341473,0.00023986,2]
[392446772,1761486643211,-1120.35651036,0.0002399,2]
[392446773,1761486643223,-500.0,0.00023997,2]
[392446774,1761486643232,-16542.0,0.00024,2]
[392446775,1761486643242,-823.0,0.00024086,2]
[392446776,1761486643251,-190.0,0.00024194,2]
[392446777,1761486643261,-315.3,0.00024301,2]
[392446778,1761486643271,-270.18341472,0.00024338,2]
[392446779,1761486643281,-500.0,0.00024425,2]
[392446780,1761486643290,-2770.0,0.00024441,2]
[392446781,1761486643300,-279.69326036,0.00024596,3]
[392446782,1761486643310,-500.0,0.00024606,2]
[392446783,1761486643319,-499.3,0.00024615,2]
[392446784,1761486643330,-380.0,0.00024658,2]
[392446785,1761486643339,-4874.62864621,0.0002469,2]
[392446786,1761486643349,-227.63747295,0.0002469,2]
[392446787,1761486643358,-270.18341472,0.0002469,2]
[392446788,1761486643368,-227.63747292,0.0002474,2]
[392446789,1761486643377,-632.0,0.00024764,2]
[392446790,1761486643387,-984.0,0.00024764,2]
[392446791,1761486643402,-2166.0,0.00024764,2]
[392446792,1761486643411,-2117.22,0.0002477,10]
[392446793,1761486643425,-192.6,0.00024777,2]
[392446794,1761486643435,-913.27,0.0002478,3]
[392446795,1761486643450,-456.64,0.0002478,3]
[392446796,1761486643460,-228.32,0.0002478,3]
[392446797,1761486643469,-684.96,0.0002478,3]
[392446798,1761486643478,-500.0,0.00024789,2]
[392446799,1761486643487,-500.0,0.00024789,2]
[392446800,1761486643498,-500.0,0.00024789,2]
[392446801,1761486643507,-500.0,0.00024789,2]
[392446802,1761486643517,-500.0,0.00024789,2]
[392446803,1761486643527,-500.0,0.00024789,2]
[392446804,1761486643550,-500.0,0.00024789,2]